[Event "Live Chess"]
[Site "Chess.com"]
[Date "2024.06.01"]
[Round "-"]
[White "IanCalvert2"]
[Black "Mangoalo"]
[Result "1/2-1/2"]
[WhiteElo "1566"]
[BlackElo "1042"]
[TimeControl "300"]
[EndTime "13:38:03 PDT"]
[Termination "Game drawn - timeout vs insufficient material"]

1. b3 {[%clk 0:04:56.4]} 1... Nf6 {[%clk 0:04:58.2]} 2. Bb2 {[%clk 0:04:55.4]}
2... e5 {[%clk 0:04:58.1]} 3. Bxe5 {[%clk 0:04:50.8]} 3... d6 {[%clk 0:04:58]}
4. Bb2 {[%clk 0:04:46.6]} 4... Nc6 {[%clk 0:04:56.3]} 5. Nf3 {[%clk 0:04:42.1]}
5... Bf5 {[%clk 0:04:55.9]} 6. d3 {[%clk 0:04:37.7]} 6... h6 {[%clk 0:04:54.8]}
7. Nbd2 {[%clk 0:04:35.9]} 7... Be7 {[%clk 0:04:53]} 8. g3 {[%clk 0:04:34.7]}
8... Qd7 {[%clk 0:04:52]} 9. Bg2 {[%clk 0:04:33.7]} 9... O-O-O {[%clk
0:04:50.4]} 10. O-O {[%clk 0:04:32.3]} 10... Ne5 {[%clk 0:04:49.2]} 11. Nxe5
{[%clk 0:04:24.2]} 11... dxe5 {[%clk 0:04:49.1]} 12. Bxe5 {[%clk 0:04:22.3]}
12... Bd6 {[%clk 0:04:45.9]} 13. Bxd6 {[%clk 0:04:11]} 13... Qxd6 {[%clk
0:04:43.5]} 14. c4 {[%clk 0:04:09.3]} 14... c5 {[%clk 0:04:42]} 15. a3 {[%clk
0:04:04.6]} 15... Rhe8 {[%clk 0:04:38.2]} 16. b4 {[%clk 0:04:01.9]} 16... cxb4
{[%clk 0:04:36.4]} 17. axb4 {[%clk 0:04:00.1]} 17... a6 {[%clk 0:04:35.2]} 18.
b5 {[%clk 0:03:56.5]} 18... axb5 {[%clk 0:04:32.6]} 19. cxb5 {[%clk 0:03:54.3]}
19... Kd7 {[%clk 0:04:24.1]} 20. e4 {[%clk 0:03:37.9]} 20... Bh7 {[%clk
0:04:20.7]} 21. f4 {[%clk 0:03:16.7]} 21... Ng8 {[%clk 0:04:17.2]} 22. Nc4
{[%clk 0:03:05.3]} 22... Qd4+ {[%clk 0:04:14]} 23. Kh1 {[%clk 0:03:02.5]} 23...
Ke7 {[%clk 0:04:08.6]} 24. Qb3 {[%clk 0:02:46.7]} 24... Kf8 {[%clk 0:04:05]} 25.
Qb4+ {[%clk 0:02:43.3]} 25... Re7 {[%clk 0:03:59.4]} 26. Rfb1 {[%clk 0:02:30.6]}
26... Qxd3 {[%clk 0:03:52.1]} 27. Ne5 {[%clk 0:02:25.1]} 27... Rd4 {[%clk
0:03:42]} 28. Ra8+ {[%clk 0:02:19.2]} 28... Rd8 {[%clk 0:03:38.3]} 29. Rxd8+
{[%clk 0:02:11.3]} 29... Qxd8 {[%clk 0:03:38.2]} 30. b6 {[%clk 0:01:42.2]} 30...
g5 {[%clk 0:03:30.4]} 31. Rc1 {[%clk 0:01:34.6]} 31... Kg7 {[%clk 0:03:24.3]}
32. Qb2 {[%clk 0:00:53.2]} 32... f6 {[%clk 0:03:22.4]} 33. Ng4 {[%clk 0:00:44]}
33... gxf4 {[%clk 0:03:12.4]} 34. e5 {[%clk 0:00:33.1]} 34... fxe5 {[%clk
0:03:08]} 35. Nxe5 {[%clk 0:00:30.8]} 35... Nf6 {[%clk 0:03:01.6]} 36. gxf4
{[%clk 0:00:25]} 36... Qe8 {[%clk 0:02:39.4]} 37. Ng4 {[%clk 0:00:22.2]} 37...
Qf7 {[%clk 0:02:36]} 38. Qxf6+ {[%clk 0:00:19]} 38... Qxf6 {[%clk 0:02:34.6]}
39. Nxf6 {[%clk 0:00:17.8]} 39... Kxf6 {[%clk 0:02:34.5]} 40. Rc7 {[%clk
0:00:15.7]} 40... Rxc7 {[%clk 0:02:32.9]} 41. bxc7 {[%clk 0:00:13.7]} 41... Bf5
{[%clk 0:02:32.8]} 42. Bxb7 {[%clk 0:00:09.2]} 42... h5 {[%clk 0:02:31.4]} 43.
c8=Q {[%clk 0:00:08.1]} 43... Bxc8 {[%clk 0:02:30.3]} 44. Bxc8 {[%clk 0:00:07]}
44... h4 {[%clk 0:02:29.9]} 45. Kg2 {[%clk 0:00:06]} 45... Kg6 {[%clk
0:02:28.9]} 46. Kh3 {[%clk 0:00:05.5]} 46... Kf6 {[%clk 0:02:22.8]} 47. Kxh4
{[%clk 0:00:03.1]} 47... Kf7 {[%clk 0:02:22.7]} 1/2-1/2

[Event "Live Chess"]
[Site "Chess.com"]
[Date "2024.06.01"]
[Round "-"]
[White "CarmelJane"]
[Black "JohanKjeldahl"]
[Result "1/2-1/2"]
[WhiteElo "2082"]
[BlackElo "1871"]
[TimeControl "300"]
[EndTime "13:38:12 PDT"]
[Termination "Game drawn by repetition"]

1. e4 {[%clk 0:04:57.8]} 1... c5 {[%clk 0:04:57.8]} 2. Nf3 {[%clk 0:04:56.3]}
2... e6 {[%clk 0:04:57]} 3. d4 {[%clk 0:04:52.2]} 3... cxd4 {[%clk 0:04:56]} 4.
Nxd4 {[%clk 0:04:52.1]} 4... Nc6 {[%clk 0:04:55.2]} 5. g3 {[%clk 0:04:46.1]}
5... Nf6 {[%clk 0:04:53.3]} 6. Bg2 {[%clk 0:04:44.1]} 6... a6 {[%clk 0:04:52.2]}
7. O-O {[%clk 0:04:43]} 7... Qc7 {[%clk 0:04:50.1]} 8. Nc3 {[%clk 0:04:18.1]}
8... Be7 {[%clk 0:04:47.7]} 9. Nxc6 {[%clk 0:04:08.5]} 9... dxc6 {[%clk
0:04:46]} 10. Kh1 {[%clk 0:03:51.8]} 10... O-O {[%clk 0:04:44.5]} 11. f4 {[%clk
0:03:49.8]} 11... b5 {[%clk 0:04:41.2]} 12. e5 {[%clk 0:03:48.4]} 12... Nd5
{[%clk 0:04:40.1]} 13. Nxd5 {[%clk 0:03:39.1]} 13... cxd5 {[%clk 0:04:38]} 14.
c3 {[%clk 0:03:37.8]} 14... Bb7 {[%clk 0:04:36.7]} 15. Be3 {[%clk 0:03:33.9]}
15... Rac8 {[%clk 0:04:29.7]} 16. Bd4 {[%clk 0:03:33.2]} 16... Bc5 {[%clk
0:04:26.2]} 17. Rc1 {[%clk 0:03:29.8]} 17... Qb6 {[%clk 0:04:19.2]} 18. Qd3
{[%clk 0:03:21.6]} 18... Rc7 {[%clk 0:04:11.2]} 19. f5 {[%clk 0:03:02]} 19...
Bxd4 {[%clk 0:03:58.6]} 20. cxd4 {[%clk 0:02:57.6]} 20... Rxc1 {[%clk
0:03:52.3]} 21. Rxc1 {[%clk 0:02:57.5]} 21... Rc8 {[%clk 0:03:50.1]} 22. Rxc8+
{[%clk 0:02:52.2]} 22... Bxc8 {[%clk 0:03:48]} 23. f6 {[%clk 0:02:42]} 23... g6
{[%clk 0:03:38.5]} 24. Qd2 {[%clk 0:02:29.1]} 24... Qd8 {[%clk 0:03:20.7]} 25.
h4 {[%clk 0:02:19]} 25... h5 {[%clk 0:03:17.8]} 26. Bf3 {[%clk 0:02:15.4]} 26...
Kh7 {[%clk 0:03:14.9]} 27. g4 {[%clk 0:02:13.8]} 27... hxg4 {[%clk 0:03:12.5]}
28. Bxg4 {[%clk 0:02:11.9]} 28... Qf8 {[%clk 0:02:48]} 29. h5 {[%clk 0:02:03.6]}
29... Qh6 {[%clk 0:02:44.9]} 30. Qxh6+ {[%clk 0:01:58.2]} 30... Kxh6 {[%clk
0:02:43.9]} 31. hxg6 {[%clk 0:01:54.7]} 31... Kxg6 {[%clk 0:02:42.7]} 32. Kg2
{[%clk 0:01:52.1]} 32... b4 {[%clk 0:02:36]} 33. Kg3 {[%clk 0:01:47.8]} 33... a5
{[%clk 0:02:35]} 34. a3 {[%clk 0:01:27.9]} 34... Ba6 {[%clk 0:02:23.7]} 35. Bd1
{[%clk 0:01:18.3]} 35... Bb5 {[%clk 0:02:08.9]} 36. axb4 {[%clk 0:01:10.6]}
36... axb4 {[%clk 0:02:06.9]} 37. Kf4 {[%clk 0:01:07.1]} 37... Kh6 {[%clk
0:01:58.1]} 38. Ke3 {[%clk 0:01:01.3]} 38... Kg5 {[%clk 0:01:57.2]} 39. Bc2
{[%clk 0:00:40.8]} 39... Kg4 {[%clk 0:01:52.6]} 40. Kf2 {[%clk 0:00:38.2]} 40...
Kf4 {[%clk 0:01:51.1]} 41. Bb1 {[%clk 0:00:36.6]} 41... Ba6 {[%clk 0:01:30.9]}
42. Bh7 {[%clk 0:00:35.3]} 42... Bb5 {[%clk 0:01:28.9]} 43. Bg8 {[%clk
0:00:34.5]} 43... Be8 {[%clk 0:01:27.6]} 44. Bh7 {[%clk 0:00:33.8]} 44... Bb5
{[%clk 0:01:22.7]} 45. Bg8 {[%clk 0:00:32.9]} 45... Be8 {[%clk 0:01:21.3]} 46.
Bh7 {[%clk 0:00:31.9]} 46... Bb5 {[%clk 0:01:19.5]} 1/2-1/2

[Event "Live Chess"]
[Site "Chess.com"]
[Date "2024.06.01"]
[Round "-"]
[White "Eva3337"]
[Black "Tushinskiy"]
[Result "0-1"]
[WhiteElo "1169"]
[BlackElo "2268"]
[TimeControl "300"]
[EndTime "13:38:41 PDT"]
[Termination "Tushinskiy won by resignation"]

1. e4 {[%clk 0:04:53.3]} 1... e5 {[%clk 0:04:57.8]} 2. Nf3 {[%clk 0:04:51.6]}
2... d6 {[%clk 0:04:57.7]} 3. c3 {[%clk 0:04:50.3]} 3... Bg4 {[%clk 0:04:57.6]}
4. Be2 {[%clk 0:04:49.1]} 4... Nd7 {[%clk 0:04:50]} 5. h3 {[%clk 0:04:48]} 5...
Bh5 {[%clk 0:04:48.9]} 6. b4 {[%clk 0:04:44.1]} 6... Ngf6 {[%clk 0:04:48.2]} 7.
d3 {[%clk 0:04:42.4]} 7... c6 {[%clk 0:04:47.1]} 8. Nh2 {[%clk 0:04:30.6]} 8...
Bg6 {[%clk 0:04:45.7]} 9. Ng4 {[%clk 0:04:25.1]} 9... Be7 {[%clk 0:04:43.4]} 10.
Bg5 {[%clk 0:04:20.4]} 10... a5 {[%clk 0:04:38.8]} 11. Nxf6+ {[%clk 0:04:04.3]}
11... Nxf6 {[%clk 0:04:33.1]} 12. b5 {[%clk 0:03:53.1]} 12... O-O {[%clk
0:04:26.6]} 13. bxc6 {[%clk 0:03:47.8]} 13... bxc6 {[%clk 0:04:24]} 14. f4
{[%clk 0:03:37]} 14... exf4 {[%clk 0:04:20.8]} 15. Bxf4 {[%clk 0:03:35.3]} 15...
Re8 {[%clk 0:04:20.1]} 16. d4 {[%clk 0:03:32]} 16... Nxe4 {[%clk 0:04:18.1]} 17.
Bf3 {[%clk 0:03:13.5]} 17... Bh4+ {[%clk 0:04:14.3]} 18. g3 {[%clk 0:03:10.6]}
18... Bxg3+ {[%clk 0:04:05.9]} 19. Bxg3 {[%clk 0:03:08.3]} 19... Nxg3+ {[%clk
0:04:05.8]} 20. Kf2 {[%clk 0:03:07.2]} 20... Nxh1+ {[%clk 0:04:02.7]} 21. Qxh1
{[%clk 0:03:05.5]} 21... Qh4+ {[%clk 0:04:02.6]} 22. Kg2 {[%clk 0:02:56.5]}
22... Re1 {[%clk 0:03:58.8]} 23. Nd2 {[%clk 0:02:44.5]} 23... Rxh1 {[%clk
0:03:56.1]} 24. Rxh1 {[%clk 0:02:44.4]} 24... Re8 {[%clk 0:03:53.8]} 25. Nf1
{[%clk 0:02:11.3]} 25... d5 {[%clk 0:03:24.5]} 26. Rg1 {[%clk 0:02:01.5]} 26...
h5 {[%clk 0:02:57.7]} 27. Ng3 {[%clk 0:01:58.7]} 27... Re3 {[%clk 0:02:52.2]}
28. Kf2 {[%clk 0:01:46.9]} 28... Rxc3 {[%clk 0:02:45.1]} 0-1

[Event "Live Chess"]
[Site "Chess.com"]
[Date "2024.06.01"]
[Round "-"]
[White "booktrunk"]
[Black "wadsy27"]
[Result "0-1"]
[WhiteElo "1396"]
[BlackElo "2539"]
[TimeControl "300"]
[EndTime "13:38:43 PDT"]
[Termination "wadsy27 won by resignation"]

1. d4 {[%clk 0:04:55.9]} 1... c5 {[%clk 0:04:59.6]} 2. dxc5 {[%clk 0:04:54.1]}
2... e6 {[%clk 0:04:58.3]} 3. Nc3 {[%clk 0:04:51]} 3... Bxc5 {[%clk 0:04:57.9]}
4. Bf4 {[%clk 0:04:50.2]} 4... d5 {[%clk 0:04:57.3]} 5. e3 {[%clk 0:04:46.1]}
5... Nf6 {[%clk 0:04:53.7]} 6. Nb5 {[%clk 0:04:43.8]} 6... Na6 {[%clk
0:04:52.8]} 7. a3 {[%clk 0:04:41.1]} 7... O-O {[%clk 0:04:51.7]} 8. b4 {[%clk
0:04:38.5]} 8... Be7 {[%clk 0:04:51.2]} 9. Nf3 {[%clk 0:04:34.8]} 9... Bd7
{[%clk 0:04:48.5]} 10. Be2 {[%clk 0:04:31.5]} 10... Ne4 {[%clk 0:04:45.6]} 11.
O-O {[%clk 0:04:24]} 11... Bf6 {[%clk 0:04:45.2]} 12. Rc1 {[%clk 0:04:20.6]}
12... Bxb5 {[%clk 0:04:39.9]} 13. Bxb5 {[%clk 0:04:16.8]} 13... Bb2 {[%clk
0:04:39.5]} 14. Rb1 {[%clk 0:03:58.6]} 14... Nc3 {[%clk 0:04:30.3]} 15. Qe2
{[%clk 0:03:53.4]} 15... Nxe2+ {[%clk 0:04:29]} 0-1

[Event "Live Chess"]
[Site "Chess.com"]
[Date "2024.06.01"]
[Round "-"]
[White "Cimon"]
[Black "ProfPoisson"]
[Result "1-0"]
[WhiteElo "1826"]
[BlackElo "1292"]
[TimeControl "300"]
[EndTime "13:39:12 PDT"]
[Termination "Cimon won by resignation"]

1. d4 {[%clk 0:04:56.8]} 1... e6 {[%clk 0:04:58]} 2. Nf3 {[%clk 0:04:54.8]} 2...
f5 {[%clk 0:04:56.4]} 3. c4 {[%clk 0:04:52.4]} 3... Nf6 {[%clk 0:04:54.9]} 4.
Nc3 {[%clk 0:04:50.1]} 4... Bb4 {[%clk 0:04:53.2]} 5. g3 {[%clk 0:04:47]} 5...
Bxc3+ {[%clk 0:04:51.6]} 6. bxc3 {[%clk 0:04:45.6]} 6... b6 {[%clk 0:04:47.2]}
7. Bg2 {[%clk 0:04:43.7]} 7... Bb7 {[%clk 0:04:46.8]} 8. d5 {[%clk 0:04:32]}
8... O-O {[%clk 0:04:24.4]} 9. Nh4 {[%clk 0:04:20.8]} 9... Ne4 {[%clk
0:04:17.6]} 10. Bb2 {[%clk 0:04:10.4]} 10... Na6 {[%clk 0:03:28.3]} 11. O-O
{[%clk 0:03:49.8]} 11... Nac5 {[%clk 0:03:26.5]} 12. Nf3 {[%clk 0:03:43.2]}
12... Ba6 {[%clk 0:03:17.6]} 13. Ne5 {[%clk 0:03:16.4]} 13... Qf6 {[%clk
0:03:00.5]} 14. f4 {[%clk 0:03:14.7]} 14... Na4 {[%clk 0:02:35.6]} 15. Qxa4
{[%clk 0:03:07.2]} 15... Qh6 {[%clk 0:02:12.3]} 16. Qxa6 {[%clk 0:03:01]} 1-0

[Event "Live Chess"]
[Site "Chess.com"]
[Date "2024.06.01"]
[Round "-"]
[White "WelshTiger"]
[Black "educatedlad"]
[Result "1-0"]
[WhiteElo "2531"]
[BlackElo "1741"]
[TimeControl "300"]
[EndTime "13:39:22 PDT"]
[Termination "WelshTiger won by resignation"]

1. e4 {[%clk 0:04:58]} 1... c5 {[%clk 0:04:58.4]} 2. Nf3 {[%clk 0:04:56]} 2...
e6 {[%clk 0:04:58]} 3. c3 {[%clk 0:04:54.7]} 3... d5 {[%clk 0:04:56.5]} 4. exd5
{[%clk 0:04:54.2]} 4... exd5 {[%clk 0:04:56.4]} 5. d4 {[%clk 0:04:53.1]} 5...
Nf6 {[%clk 0:04:53.2]} 6. Bb5+ {[%clk 0:04:51.4]} 6... Bd7 {[%clk 0:04:45.6]} 7.
Bxd7+ {[%clk 0:04:49.3]} 7... Qxd7 {[%clk 0:04:42.8]} 8. O-O {[%clk 0:04:49.2]}
8... Be7 {[%clk 0:04:41.4]} 9. dxc5 {[%clk 0:04:47.4]} 9... Bxc5 {[%clk
0:04:38.4]} 10. Re1+ {[%clk 0:04:46.4]} 10... Be7 {[%clk 0:04:37.4]} 11. Qe2
{[%clk 0:04:43.3]} 11... Nc6 {[%clk 0:04:35.9]} 12. Nd4 {[%clk 0:04:38.9]} 12...
Nxd4 {[%clk 0:04:29.9]} 13. cxd4 {[%clk 0:04:38]} 13... Ne4 {[%clk 0:04:13.2]}
14. Nc3 {[%clk 0:04:28.3]} 14... Nxc3 {[%clk 0:04:09]} 15. bxc3 {[%clk
0:04:28.2]} 15... Rc8 {[%clk 0:04:06.9]} 16. Ba3 {[%clk 0:04:26.3]} 16... Rc7
{[%clk 0:04:04.1]} 17. Bxe7 {[%clk 0:04:21.6]} 17... Qxe7 {[%clk 0:04:02.7]} 18.
Qb5+ {[%clk 0:04:20.9]} 18... Kd8 {[%clk 0:03:57.5]} 19. Rxe7 {[%clk 0:04:18.9]}
1-0

[Event "Live Chess"]
[Site "Chess.com"]
[Date "2024.06.01"]
[Round "-"]
[White "upoe610"]
[Black "WeakOldFinished"]
[Result "1-0"]
[WhiteElo "2243"]
[BlackElo "2177"]
[TimeControl "300"]
[EndTime "13:39:30 PDT"]
[Termination "upoe610 won - game abandoned"]

1. c4 {[%clk 0:04:55.2]} 1... e5 {[%clk 0:04:56.5]} 2. g3 {[%clk 0:04:53.7]}
2... Nf6 {[%clk 0:04:55.2]} 3. Bg2 {[%clk 0:04:52.6]} 3... c6 {[%clk 0:04:54]}
4. Nf3 {[%clk 0:04:50.9]} 4... d6 {[%clk 0:04:52]} 5. Nc3 {[%clk 0:04:44.9]}
5... Be7 {[%clk 0:04:50.6]} 6. O-O {[%clk 0:04:44]} 6... O-O {[%clk 0:04:49.6]}
7. e4 {[%clk 0:04:40.9]} 7... Nbd7 {[%clk 0:04:47.7]} 8. d4 {[%clk 0:04:39.8]}
8... Re8 {[%clk 0:04:46.1]} 9. dxe5 {[%clk 0:04:37.4]} 9... dxe5 {[%clk
0:04:44.9]} 10. Bg5 {[%clk 0:04:36]} 10... h6 {[%clk 0:04:39.4]} 11. Bxf6 {[%clk
0:04:33.8]} 11... Bxf6 {[%clk 0:04:37.4]} 12. Qc2 {[%clk 0:04:30.1]} 12... a5
{[%clk 0:04:35.1]} 13. Rad1 {[%clk 0:04:29.5]} 13... Qc7 {[%clk 0:04:30.6]} 14.
Ne1 {[%clk 0:04:22.8]} 14... Nc5 {[%clk 0:04:28]} 15. Nd3 {[%clk 0:04:21.3]}
15... Ne6 {[%clk 0:04:26.3]} 16. a3 {[%clk 0:04:11.2]} 16... Nd4 {[%clk
0:04:24.7]} 17. Qb1 {[%clk 0:04:09.2]} 17... Be6 {[%clk 0:04:18.1]} 18. b3
{[%clk 0:04:04.8]} 18... a4 {[%clk 0:04:12.8]} 19. Nc5 {[%clk 0:04:03.8]} 19...
axb3 {[%clk 0:04:09.2]} 20. Nxe6 {[%clk 0:04:02.9]} 20... Rxe6 {[%clk
0:04:05.7]} 21. Rfe1 {[%clk 0:04:01.6]} 21... Rd6 {[%clk 0:04:04.3]} 22. Ne2
{[%clk 0:03:58.6]} 22... Nxe2+ {[%clk 0:03:57]} 23. Rxe2 {[%clk 0:03:57.3]}
23... Rxa3 {[%clk 0:03:55.6]} 24. Red2 {[%clk 0:03:52.5]} 24... Rxd2 {[%clk
0:03:54.1]} 25. Rxd2 {[%clk 0:03:52.4]} 25... Ra1 {[%clk 0:03:52.9]} 26. Qxa1
{[%clk 0:03:50.3]} 26... Qb6 {[%clk 0:03:48.8]} 27. Rb2 {[%clk 0:03:44.8]} 27...
Qb4 {[%clk 0:03:37.9]} 28. Qb1 {[%clk 0:03:43.2]} 28... Qxc4 {[%clk 0:03:36.6]}
29. Rxb3 {[%clk 0:03:41.8]} 1-0

[Event "Live Chess"]
[Site "Chess.com"]
[Date "2024.06.01"]
[Round "-"]
[White "Delacorta"]
[Black "Dhaydon19"]
[Result "0-1"]
[WhiteElo "1554"]
[BlackElo "2673"]
[TimeControl "300"]
[EndTime "13:39:59 PDT"]
[Termination "Dhaydon19 won by resignation"]

1. d4 {[%clk 0:04:57.4]} 1... c6 {[%clk 0:04:59.7]} 2. Nf3 {[%clk 0:04:56.7]}
2... d5 {[%clk 0:04:59.4]} 3. e3 {[%clk 0:04:55.7]} 3... Nf6 {[%clk 0:04:58.8]}
4. Nbd2 {[%clk 0:04:53.1]} 4... Bg4 {[%clk 0:04:57.4]} 5. Be2 {[%clk 0:04:51.5]}
5... e6 {[%clk 0:04:52.9]} 6. b3 {[%clk 0:04:50.3]} 6... Qc7 {[%clk 0:04:51.4]}
7. Bb2 {[%clk 0:04:49.4]} 7... Nbd7 {[%clk 0:04:50.8]} 8. O-O {[%clk 0:04:46.6]}
8... Bd6 {[%clk 0:04:49]} 9. Rc1 {[%clk 0:04:42.2]} 9... O-O {[%clk 0:04:45.7]}
10. c4 {[%clk 0:04:41]} 10... a6 {[%clk 0:04:42.5]} 11. c5 {[%clk 0:04:38]}
11... Be7 {[%clk 0:04:41.6]} 12. Ne5 {[%clk 0:04:37.1]} 12... Bxe2 {[%clk
0:04:40.1]} 13. Qxe2 {[%clk 0:04:36.1]} 13... Nxe5 {[%clk 0:04:39.8]} 14. dxe5
{[%clk 0:04:34.7]} 14... Nd7 {[%clk 0:04:39.5]} 15. f4 {[%clk 0:04:33.6]} 15...
Bxc5 {[%clk 0:04:33.5]} 16. Rf3 {[%clk 0:04:31.5]} 16... Be7 {[%clk 0:04:25]}
17. Rh3 {[%clk 0:04:26.5]} 17... g6 {[%clk 0:04:22.3]} 18. Nf3 {[%clk
0:04:22.2]} 18... f5 {[%clk 0:04:17.9]} 19. Nd4 {[%clk 0:04:17]} 19... Rfe8
{[%clk 0:04:04.7]} 20. Nxe6 {[%clk 0:04:14.9]} 20... Qb6 {[%clk 0:04:03.8]} 21.
Bd4 {[%clk 0:03:59.7]} 21... c5 {[%clk 0:04:01.7]} 22. Ba1 {[%clk 0:03:42.1]}
22... Qxe6 {[%clk 0:03:59.1]} 0-1

[Event "Live Chess"]
[Site "Chess.com"]
[Date "2024.06.01"]
[Round "-"]
[White "LL220284LL"]
[Black "Zhevzh1k7"]
[Result "1-0"]
[WhiteElo "2561"]
[BlackElo "1099"]
[TimeControl "300"]
[EndTime "13:40:20 PDT"]
[Termination "LL220284LL won by checkmate"]

1. b4 {[%clk 0:04:58.9]} 1... d5 {[%clk 0:04:55.5]} 2. Bb2 {[%clk 0:04:58.1]}
2... Bf5 {[%clk 0:04:43]} 3. Nf3 {[%clk 0:04:56.6]} 3... e6 {[%clk 0:04:41.7]}
4. e3 {[%clk 0:04:54.4]} 4... Nf6 {[%clk 0:04:40.8]} 5. a3 {[%clk 0:04:53]} 5...
c6 {[%clk 0:04:39.9]} 6. c4 {[%clk 0:04:52.1]} 6... Nbd7 {[%clk 0:04:35.7]} 7.
Be2 {[%clk 0:04:51.2]} 7... Bd6 {[%clk 0:04:31.4]} 8. O-O {[%clk 0:04:50.1]}
8... O-O {[%clk 0:04:26.8]} 9. Nc3 {[%clk 0:04:48.8]} 9... dxc4 {[%clk 0:04:24]}
10. Bxc4 {[%clk 0:04:47.3]} 10... b5 {[%clk 0:04:22.9]} 11. Be2 {[%clk 0:04:46]}
11... c5 {[%clk 0:04:20.9]} 12. bxc5 {[%clk 0:04:41.7]} 12... Nxc5 {[%clk
0:04:19]} 13. d4 {[%clk 0:04:41.2]} 13... Nce4 {[%clk 0:04:11.6]} 14. Nxb5
{[%clk 0:04:39.9]} 14... Rb8 {[%clk 0:04:05.6]} 15. Nxd6 {[%clk 0:04:38.6]}
15... Qxd6 {[%clk 0:04:01.4]} 16. Bc1 {[%clk 0:04:21.6]} 16... Nc3 {[%clk
0:03:50.9]} 17. Qe1 {[%clk 0:04:19.8]} 17... Nfe4 {[%clk 0:03:39.1]} 18. Ne5
{[%clk 0:04:14.2]} 18... Nxe2+ {[%clk 0:03:21.4]} 19. Qxe2 {[%clk 0:04:06.5]}
19... Nc3 {[%clk 0:03:17]} 20. Qe1 {[%clk 0:04:02.5]} 20... Rfc8 {[%clk
0:03:07.4]} 21. Bd2 {[%clk 0:03:59.9]} 21... Nd5 {[%clk 0:03:02.5]} 22. e4
{[%clk 0:03:57.4]} 22... Qa6 {[%clk 0:02:58.8]} 23. exf5 {[%clk 0:03:54.6]}
23... exf5 {[%clk 0:02:57.1]} 24. Bb4 {[%clk 0:03:52]} 24... f6 {[%clk
0:02:51.2]} 25. Nd7 {[%clk 0:03:47.6]} 25... Rb7 {[%clk 0:02:36.7]} 26. Nc5
{[%clk 0:03:46.6]} 26... Qb5 {[%clk 0:02:29.4]} 27. Qe6+ {[%clk 0:03:43.1]}
27... Kh8 {[%clk 0:02:26.3]} 28. Qxc8+ {[%clk 0:03:42.1]} 28... Qe8 {[%clk
0:02:23.1]} 29. Qxe8# {[%clk 0:03:42]} 1-0

[Event "Live Chess"]
[Site "Chess.com"]
[Date "2024.06.01"]
[Round "-"]
[White "jellhhggffhjjjjjj"]
[Black "Frankie_Badacsonyi"]
[Result "0-1"]
[WhiteElo "139"]
[BlackElo "2440"]
[TimeControl "300"]
[EndTime "13:40:31 PDT"]
[Termination "Frankie_Badacsonyi won by checkmate"]

1. g3 {[%clk 0:04:49.3]} 1... h5 {[%clk 0:04:58.2]} 2. Bg2 {[%clk 0:04:46.6]}
2... h4 {[%clk 0:04:55.1]} 3. Nf3 {[%clk 0:04:44.4]} 3... h3 {[%clk 0:04:53]} 4.
Bf1 {[%clk 0:04:40.9]} 4... d5 {[%clk 0:04:52]} 5. e3 {[%clk 0:04:39.5]} 5...
Nc6 {[%clk 0:04:50.7]} 6. Bb5 {[%clk 0:04:36.8]} 6... Bg4 {[%clk 0:04:46.3]} 7.
O-O {[%clk 0:04:28.7]} 7... Qd6 {[%clk 0:04:41]} 8. d4 {[%clk 0:04:23.3]} 8...
Qf6 {[%clk 0:04:36.3]} 9. Ne5 {[%clk 0:04:12.6]} 9... Bxd1 {[%clk 0:04:21.2]}
10. Nxc6 {[%clk 0:04:08.6]} 10... bxc6 {[%clk 0:04:15.3]} 11. Ba4 {[%clk
0:03:39.9]} 11... Qf3 {[%clk 0:04:11.8]} 12. Nc3 {[%clk 0:03:35.7]} 12... Qg2#
{[%clk 0:04:09.9]} 0-1

[Event "Live Chess"]
[Site "Chess.com"]
[Date "2024.06.01"]
[Round "-"]
[White "CCGoodKnightRookie"]
[Black "AlexanderMatlak"]
[Result "0-1"]
[WhiteElo "2252"]
[BlackElo "2466"]
[TimeControl "300"]
[EndTime "13:40:53 PDT"]
[Termination "AlexanderMatlak won by resignation"]

1. d4 {[%clk 0:04:59.1]} 1... Nf6 {[%clk 0:04:58.8]} 2. Nc3 {[%clk 0:04:58.3]}
2... d5 {[%clk 0:04:57.7]} 3. Bf4 {[%clk 0:04:57.7]} 3... g6 {[%clk 0:04:56.5]}
4. e3 {[%clk 0:04:56.8]} 4... Bg7 {[%clk 0:04:55.6]} 5. h4 {[%clk 0:04:56.4]}
5... h5 {[%clk 0:04:54.4]} 6. Nf3 {[%clk 0:04:56]} 6... O-O {[%clk 0:04:53.2]}
7. Ne5 {[%clk 0:04:55.6]} 7... c5 {[%clk 0:04:52]} 8. Qd2 {[%clk 0:04:53.8]}
8... Nc6 {[%clk 0:04:50.6]} 9. f3 {[%clk 0:04:53]} 9... cxd4 {[%clk 0:04:48.2]}
10. exd4 {[%clk 0:04:52.4]} 10... Bf5 {[%clk 0:04:44.9]} 11. O-O-O {[%clk
0:04:51.6]} 11... Rc8 {[%clk 0:04:43.4]} 12. Bb5 {[%clk 0:04:50.4]} 12... Qa5
{[%clk 0:04:30]} 13. Bxc6 {[%clk 0:04:47.6]} 13... bxc6 {[%clk 0:04:28.8]} 14.
a3 {[%clk 0:04:33.1]} 14... c5 {[%clk 0:04:24.3]} 15. dxc5 {[%clk 0:04:25.4]}
15... Qxc5 {[%clk 0:04:22.8]} 16. Be3 {[%clk 0:04:12.9]} 16... Qc7 {[%clk
0:04:19.9]} 17. Bd4 {[%clk 0:04:09]} 17... Rfd8 {[%clk 0:04:15.9]} 18. Rdg1
{[%clk 0:04:00.7]} 18... Nd7 {[%clk 0:04:11.6]} 19. Nxd7 {[%clk 0:03:56.8]}
19... Qxd7 {[%clk 0:04:11.5]} 20. g4 {[%clk 0:03:46.1]} 20... e5 {[%clk
0:04:03.8]} 21. Bxa7 {[%clk 0:03:03.9]} 21... hxg4 {[%clk 0:03:58.2]} 22. Bb6
{[%clk 0:02:59.8]} 22... gxf3 {[%clk 0:03:48.6]} 23. Bxd8 {[%clk 0:02:57.6]}
23... Rxd8 {[%clk 0:03:48.5]} 24. h5 {[%clk 0:02:53.4]} 24... d4 {[%clk
0:03:47.1]} 25. Nd1 {[%clk 0:01:56.3]} 25... e4 {[%clk 0:03:44.8]} 26. hxg6
{[%clk 0:01:43.7]} 26... Bxg6 {[%clk 0:03:44.7]} 27. Qh2 {[%clk 0:01:32.6]}
27... e3 {[%clk 0:03:38.8]} 28. Rxg6 {[%clk 0:01:25]} 28... fxg6 {[%clk
0:03:38.7]} 29. Qh7+ {[%clk 0:01:24.3]} 29... Kf7 {[%clk 0:03:37.2]} 30. Rg1
{[%clk 0:01:23.8]} 30... Qf5 {[%clk 0:03:32.1]} 31. Qh4 {[%clk 0:01:20.4]} 31...
Rc8 {[%clk 0:03:23.3]} 32. c3 {[%clk 0:01:15.9]} 32... e2 {[%clk 0:03:11.6]} 33.
Nf2 {[%clk 0:01:12.8]} 33... dxc3 {[%clk 0:03:06.3]} 34. b4 {[%clk 0:01:05]}
34... c2 {[%clk 0:02:23.6]} 35. Ne4 {[%clk 0:00:55.5]} 35... Qe5 {[%clk
0:02:04.7]} 36. Ng5+ {[%clk 0:00:50.9]} 36... Ke8 {[%clk 0:01:58.7]} 37. Qe4
{[%clk 0:00:36.9]} 37... Qxe4 {[%clk 0:01:52.4]} 38. Nxe4 {[%clk 0:00:36.8]}
38... Bh6+ {[%clk 0:01:51.4]} 0-1